{"text_format":"1","workbook":"xlsx","n_sheets":4,"sheets":["申請書","事業収支予算書","Ⅴ","リスト"],"not_rendered":{"charts":0,"images":0,"macros":1,"external_links":0,"defined_names":3,"comments":0,"pivot_tables":0},"unopened":[],"bounds":{"document_bytes":16777216,"sheet_cells":100000,"rows_first":2000,"rows_last":500,"rows_between":2000,"halvings":0,"cell_chars":16384,"cell_head_chars":4096},"cells_cut":0,"cells_raw":0,"read":"whole","date_system":"1900"}

{"sheet":"申請書","index":0,"n_rows":98,"n_cols":67,"rows_kept":98,"cut":false,"hidden":false,"merged":[[20,66,21,66],[62,46,63,60],[60,46,61,60],[46,64,50,64],[17,66,18,66],[30,3,31,62],[62,30,63,42],[62,43,63,45],[53,27,54,29],[53,30,54,42],[53,43,54,45],[56,27,57,29],[56,30,57,42],[56,43,57,45],[62,2,63,26],[47,27,48,29],[59,30,60,42],[59,43,60,45],[62,27,63,29],[94,4,95,60],[47,2,48,20],[50,2,51,20],[53,2,54,24],[56,2,57,24],[59,2,60,26],[47,30,48,42],[47,43,48,45],[50,27,51,29],[50,30,51,42],[50,43,51,45],[97,4,98,49],[97,50,98,60],[44,1,45,46],[16,23,17,35],[69,17,70,20],[69,21,70,23],[69,24,70,26],[69,27,70,30],[69,31,70,33],[69,38,70,40],[69,6,70,16],[35,1,36,16],[38,4,42,60],[22,10,24,53],[28,4,29,62],[59,27,60,29],[14,23,15,28],[2,49,3,52],[2,53,3,55],[2,56,3,59],[2,60,3,62],[2,39,3,42],[2,43,3,45],[2,46,3,48],[9,36,12,59],[9,23,10,28],[11,23,12,35],[14,60,17,63],[14,36,17,59],[1,2,2,22],[5,3,6,21],[69,34,70,37],[91,4,92,45],[91,46,92,61],[76,35,77,57],[79,4,80,27],[79,28,80,50],[76,4,77,33],[78,1,78,61],[85,41,86,56],[85,4,86,39],[82,41,83,56],[82,4,83,39],[88,25,89,47],[73,1,74,45],[6,66,7,66],[8,66,9,66],[10,66,11,66],[12,66,13,66],[14,66,16,66],[2,64,4,64],[75,0,75,63],[76,62,100,63],[76,0,100,0],[52,64,56,64],[93,1,93,61],[96,1,96,61],[81,1,81,61],[84,1,84,61],[87,1,87,61],[90,1,90,61],[66,1,67,23],[88,4,89,24],[5,64,7,64],[9,64,12,64],[13,64,16,64]]}
[]
[null,null,"（第１号様式イ）（第７条関係）"]
[null,null,null,null,null,null,null,null,null,null,null,null,null,null,null,null,null,null,null,null,null,null,null,null,null,null,null,null,null,null,null,null,null,null,null,null,null,null,null,"令和",null,null,null,null,null,null,"年",null,null,null,null,null,null,"月",null,null,null,null,null,null,"日",null,null,null,"←実際の提出日を記載してください。"]
[]
[]
[null,null,null,"東　京　都　知　事　　殿",null,null,null,null,null,null,null,null,null,null,null,null,null,null,null,null,null,null,null,null,null,null,null,null,null,null,null,null,null,null,null,null,null,null,null,null,null,null,null,null,null,null,null,null,null,null,null,null,null,null,null,null,null,null,null,null,null,null,null,null,"■ 提出前に以下の欄の表示が全て「OK」であることを確認してください。"]
[null,null,null,null,null,null,null,null,null,null,null,null,null,null,null,null,null,null,null,null,null,null,null,null,null,null,null,null,null,null,null,null,null,null,null,null,null,null,null,null,null,null,null,null,null,null,null,null,null,null,null,null,null,null,null,null,null,null,null,null,null,null,null,null,null,false,{"$f":"IF(AND(BN7=TRUE,BN8=FALSE),\"OK\",\"\")","v":""}]
[null,null,null,null,null,null,null,null,null,null,null,null,null,null,null,null,null,null,null,null,null,null,null,null,null,null,null,null,null,null,null,null,null,null,null,null,null,null,null,null,null,null,null,null,null,null,null,null,null,null,null,null,null,null,null,null,null,null,null,null,null,null,null,null,null,false]
[null,null,null,null,null,null,null,null,null,null,null,null,null,null,null,null,null,null,null,null,null,null,null,null,null,null,null,null,null,null,null,null,null,null,null,null,null,null,null,null,null,null,null,null,null,null,null,null,null,null,null,null,null,null,null,null,null,null,null,null,null,null,null,null,null,false,{"$f":"IF(OR(AND(BN9=TRUE,BN10=FALSE),AND(BN9=FALSE,BN10=TRUE)),\"OK\",\"\")","v":""}]
[null,null,null,null,null,null,null,null,null,null,null,null,null,null,null,null,null,null,null,null,null,null,null,"住　　所",null,null,null,null,null,null,null,null,null,null,null,null,null,null,null,null,null,null,null,null,null,null,null,null,null,null,null,null,null,null,null,null,null,null,null,null,null,null,null,null,{"$f":"IF(OR(AK10=\"\",AK15=\"\",E39=\"\",AE48=\"\",AE51=\"\",V70=\"\",AB70=\"\",AI70=\"\"),\"入力漏れがあります\",\"OK\")","v":"入力漏れがあります"},false]
[null,null,null,null,null,null,null,null,null,null,null,null,null,null,null,null,null,null,null,null,null,null,null,null,null,null,null,null,null,null,null,null,null,null,null,null,null,null,null,null,null,null,null,null,null,null,null,null,null,null,null,null,null,null,null,null,null,null,null,null,null,null,null,null,null,false,{"$f":"IF(OR(AND(BN11=TRUE,BN12=FALSE),AND(BN11=FALSE,BN12=TRUE)),\"OK\",\"\")","v":""}]
[null,null,null,null,null,null,null,null,null,null,null,null,null,null,null,null,null,null,null,null,null,null,null,"（法人その他の団体にあっては\n　主たる事務所の所在地）",null,null,null,null,null,null,null,null,null,null,null,null,null,null,null,null,null,null,null,null,null,null,null,null,null,null,null,null,null,null,null,null,null,null,null,null,null,null,null,null,null,false]
[null,null,null,null,null,null,null,null,null,null,null,null,null,null,null,null,null,null,null,null,null,null,null,null,null,null,null,null,null,null,null,null,null,null,null,null,null,null,null,null,null,null,null,null,null,null,null,null,null,null,null,null,null,null,null,null,null,null,null,null,null,null,null,null,null,false,{"$f":"IF(OR(AND(BN13=TRUE,BN14=FALSE),AND(BN13=FALSE,BN14=TRUE)),\"OK\",\"\")","v":""}]
[null,null,null,null,null,null,null,null,null,null,null,null,null,null,null,null,null,null,null,null,null,null,null,null,null,null,null,null,null,null,null,null,null,null,null,null,null,null,null,null,null,null,null,null,null,null,null,null,null,null,null,null,null,null,null,null,null,null,null,null,null,null,null,null,{"$f":"IF(AND(BO7=\"OK\",BO9=\"OK\",BO11=\"OK\",BO13=\"OK\",BO15=\"OK\",BO18=\"OK\",BO20=\"OK\",BO21=\"OK\"),\"OK\",\"「４　申請に伴う確認事項」にチェック漏れまたは重複があります\")","v":"「４　申請に伴う確認事項」にチェック漏れまたは重複があります"},false]
[null,null,null,null,null,null,null,null,null,null,null,null,null,null,null,null,null,null,null,null,null,null,null,"氏　　名",null,null,null,null,null,null,null,null,null,null,null,null,null,null,null,null,null,null,null,null,null,null,null,null,null,null,null,null,null,null,null,null,null,null,null,null,"印",null,null,null,null,false,{"$f":"IF(COUNTIF(BN15:BN17,TRUE)=1,\"OK\",\"\")","v":""}]
[null,null,null,null,null,null,null,null,null,null,null,null,null,null,null,null,null,null,null,null,null,null,null,null,null,null,null,null,null,null,null,null,null,null,null,null,null,null,null,null,null,null,null,null,null,null,null,null,null,null,null,null,null,null,null,null,null,null,null,null,null,null,null,null,null,false]
[null,null,null,null,null,null,null,null,null,null,null,null,null,null,null,null,null,null,null,null,null,null,null,"（法人その他の団体にあっては\n　その名称、代表者の氏名及び代表者印）",null,null,null,null,null,null,null,null,null,null,null,null,null,null,null,null,null,null,null,null,null,null,null,null,null,null,null,null,null,null,null,null,null,null,null,null,null,null,null,null,null,false]
[null,null,null,null,null,null,null,null,null,null,null,null,null,null,null,null,null,null,null,null,null,null,null,null,null,null,null,null,null,null,null,null,null,null,null,null,null,null,null,null,null,null,null,null,null,null,null,null,null,null,null,null,null,null,null,null,null,null,null,null,null,null,null,null,null,false,{"$f":"IF(OR(AND(BN18=TRUE,BN19=FALSE),AND(BN18=FALSE,BN19=TRUE)),\"OK\",\"\")","v":""}]
[null,null,null,null,null,null,null,null,null,null,null,null,null,null,null,null,null,null,null,null,null,null,null,null,null,null,null,null,null,null,null,null,null,null,null,null,null,null,null,null,null,null,null,null,null,null,null,null,null,null,null,null,null,null,null,null,null,null,null,null,null,null,null,null,null,false]
[null,null,null,null,null,null,null,null,null,null,null,null,null,null,null,null,null,null,null,null,null,null,null,null,null,null,null,null,null,null,null,null,null,null,null,null,null,null,null,null,null,null,null,null,null,null,null,null,null,null,null,null,null,null,null,null,null,null,null,null,null,null,null,null,null,false,{"$f":"IF(BN20=TRUE,\"OK\",\"\")","v":""}]
[null,null,null,null,null,null,null,null,null,null,null,null,null,null,null,null,null,null,null,null,null,null,null,null,null,null,null,null,null,null,null,null,null,null,null,null,null,null,null,null,null,null,null,null,null,null,null,null,null,null,null,null,null,null,null,null,null,null,null,null,null,null,null,null,null,false,{"$f":"IF(OR(AND(BN21=TRUE,BN22=FALSE),AND(BN21=FALSE,BN22=TRUE)),\"OK\",\"\")","v":""}]
[null,null,null,null,null,null,null,null,null,null,null,null,null,null,null,null,null,null,null,null,null,null,null,null,null,null,null,null,null,null,null,null,null,null,null,null,null,null,null,null,null,null,null,null,null,null,null,null,null,null,null,null,null,null,null,null,null,null,null,null,null,null,null,null,null,false]
[null,null,null,null,null,null,null,null,null,null,"中央卸売市場経営強靭化推進事業補助金交付申請書"]
[]
[]
[]
[]
[]
[null,null,null,null,"標記の補助金について交付を受けたいので、中央卸売市場経営強靭化推進事業補助金交付要綱"]
[]
[null,null,null,"（令和４年３月３１日付３中事業第７１０号）第７条の規定により、次のとおり申請します。"]
[]
[]
[]
[]
[null,"１　交付事業の名称"]
[]
[]
[]
[]
[]
[]
[]
[]
[null,"２　交付事業に係る事業費、交付対象経費及び補助金交付申請額"]
[]
[null,null,null,null,null,null,null,null,null,null,null,null,null,null,null,null,null,null,null,null,null,null,null,null,null,null,null,null,null,null,null,null,null,null,null,null,null,null,null,null,null,null,null,null,null,null,null,null,null,null,null,null,null,null,null,null,null,null,null,null,null,null,null,null,"←事業費は手入力してください（0円の場合は「0」を入力してください）"]
[null,"（１） 事業費","（１）事業費（当該年度分）",null,null,null,null,null,null,null,null,null,null,null,null,null,null,null,null,null,null,null,null,null,null,null,null,"金",null,null,null,null,null,null,null,null,null,null,null,null,null,null,null,"円"]
[]
[]
[null,null,"　　　事業費（翌年度分）",null,null,null,null,null,null,null,null,null,null,null,null,null,null,null,null,null,null,null,null,null,null,null,null,"金",null,null,null,null,null,null,null,null,null,null,null,null,null,null,null,"円"]
[]
[null,null,null,null,null,null,null,null,null,null,null,null,null,null,null,null,null,null,null,null,null,null,null,null,null,null,null,null,null,null,null,null,null,null,null,null,null,null,null,null,null,null,null,null,null,null,null,null,null,null,null,null,null,null,null,null,null,null,null,null,null,null,null,null,"←交付対象経費・補助金交付申請額は自動入力されます"]
[null,null,"（２）交付対象経費（当該年度分）",null,null,null,null,null,null,null,null,null,null,null,null,null,null,null,null,null,null,null,null,null,null,null,null,"金",null,null,{"$f":"事業収支予算書!E61","v":0},null,null,null,null,null,null,null,null,null,null,null,null,"円"]
[]
[]
[null,null,"　　　交付対象経費（翌年度分）",null,null,null,null,null,null,null,null,null,null,null,null,null,null,null,null,null,null,null,null,null,null,null,null,"金",null,null,{"$f":"事業収支予算書!E67","v":0},null,null,null,null,null,null,null,null,null,null,null,null,"円"]
[]
[]
[null,null,"（３）補助金交付申請額（当該年度分）",null,null,null,null,null,null,null,null,null,null,null,null,null,null,null,null,null,null,null,null,null,null,null,null,"金",null,null,{"$f":"事業収支予算書!AT61","v":0},null,null,null,null,null,null,null,null,null,null,null,null,"円"]
[null,null,null,null,null,null,null,null,null,null,null,null,null,null,null,null,null,null,null,null,null,null,null,null,null,null,null,null,null,null,null,null,null,null,null,null,null,null,null,null,null,null,null,null,null,null,"（千円未満の端数は切り捨て）"]
[]
[null,null,"　　　補助金交付申請額（翌年度分）",null,null,null,null,null,null,null,null,null,null,null,null,null,null,null,null,null,null,null,null,null,null,null,null,"金",null,null,{"$f":"事業収支予算書!AT67","v":0},null,null,null,null,null,null,null,null,null,null,null,null,"円",null,null,"（千円未満の端数は切り捨て）"]
[]
[]
[]
[null,"３　交付事業の開始及び完了予定日"]
[]
[]
[null,null,null,null,null,null,"交付決定日　～",null,null,null,null,null,null,null,null,null,null,"令和",null,null,null,null,null,null,"年",null,null,null,null,null,null,"月",null,null,null,null,null,null,"日"]
[]
[]
[]
[null,"４　申請に伴う確認事項（該当する項目にチェックを入れること。）"]
[]
[]
[null,null,null,null,"各市場において、施設の使用許可を受けている",null,null,null,null,null,null,null,null,null,null,null,null,null,null,null,null,null,null,null,null,null,null,null,null,null,null,null,null,null,null,"（　　使用許可は受けていない）"]
[]
[]
[null,null,null,null,"売買参加者は、承認を受けていること",null,null,null,null,null,null,null,null,null,null,null,null,null,null,null,null,null,null,null,null,null,null,null,"（　　売買参加者ではない）"]
[]
[]
[null,null,null,null,"支払義務のある者は、市場施設使用料を滞納していない",null,null,null,null,null,null,null,null,null,null,null,null,null,null,null,null,null,null,null,null,null,null,null,null,null,null,null,null,null,null,null,null,null,null,null,null,"（　　支払義務はない）"]
[]
[]
[null,null,null,null,"提出義務のある者は、都に事業報告書の提出をしている",null,null,null,null,null,null,null,null,null,null,null,null,null,null,null,null,null,null,null,null,null,null,null,null,null,null,null,null,null,null,null,null,null,null,null,null,"（　　提出義務はない）"]
[]
[]
[null,null,null,null,"建築・造作等の承認を受けている",null,null,null,null,null,null,null,null,null,null,null,null,null,null,null,null,null,null,null,null,"（　　申請中　　　申請不要　）"]
[]
[]
[null,null,null,null,"納税義務のある者は、法人税等の税金の滞納をしていない（都税）",null,null,null,null,null,null,null,null,null,null,null,null,null,null,null,null,null,null,null,null,null,null,null,null,null,null,null,null,null,null,null,null,null,null,null,null,null,null,null,null,null,"（　　納税義務はない）"]
[]
[]
[null,null,null,null,"補助事業の利用状況について、公表の対象となる可能性があることについて了解している"]
[]
[]
[null,null,null,null,"交付事業について、当該補助金の外、国や区市町村等の補助金を申請していない",null,null,null,null,null,null,null,null,null,null,null,null,null,null,null,null,null,null,null,null,null,null,null,null,null,null,null,null,null,null,null,null,null,null,null,null,null,null,null,null,null,null,null,null,null,"(   申請予定あり)"]

{"sheet":"事業収支予算書","index":1,"n_rows":69,"n_cols":65,"rows_kept":69,"cut":false,"hidden":false,"merged":[[68,3,69,25],[56,1,57,18],[62,1,63,18],[64,4,65,13],[64,16,65,29],[64,32,65,40],[64,45,65,60],[66,2,66,3],[66,4,66,13],[66,14,66,16],[66,17,66,26],[66,27,66,28],[66,29,66,31],[66,32,66,40],[66,41,66,44],[66,45,66,60],[53,1,54,21],[58,4,59,13],[60,4,60,13],[60,17,60,26],[60,14,60,16],[60,2,60,3],[48,40,50,48],[48,49,50,62],[46,1,46,17],[58,16,59,29],[46,40,46,48],[46,49,46,62],[47,33,47,39],[47,40,47,48],[47,49,47,62],[60,45,60,60],[58,45,59,60],[60,27,60,28],[60,29,60,31],[60,32,60,40],[58,32,59,40],[60,41,60,44],[36,40,38,48],[36,49,38,62],[43,1,44,17],[43,18,44,25],[43,26,44,32],[43,33,44,39],[43,40,44,48],[43,49,44,62],[45,40,45,48],[45,49,45,62],[41,1,42,42],[36,1,38,39],[45,1,45,17],[45,18,45,25],[45,26,45,32],[45,33,45,39],[1,2,2,15],[4,20,6,42],[8,1,9,12],[14,26,14,32],[15,26,15,32],[16,26,16,32],[14,33,14,39],[15,33,15,39],[16,33,16,39],[14,40,14,48],[15,40,15,48],[16,40,16,48],[10,26,11,32],[10,33,11,39],[14,18,14,25],[15,18,15,25],[16,18,16,25],[10,49,11,62],[12,1,13,62],[10,1,11,17],[10,18,11,25],[10,40,11,48],[14,49,14,62],[15,49,15,62],[16,49,16,62],[33,40,35,48],[33,49,35,62],[33,1,35,39],[24,40,26,48],[24,49,26,62],[24,1,26,39],[27,1,28,62],[23,18,23,25],[14,1,14,17],[15,1,15,17],[16,1,16,17],[17,1,17,17],[18,1,18,17],[19,1,19,17],[20,1,20,17],[21,1,21,17],[22,1,22,17],[23,1,23,17],[48,1,50,39],[46,18,46,25],[46,26,46,32],[46,33,46,39],[47,1,47,17],[47,18,47,25],[47,26,47,32],[23,33,23,39],[23,26,23,32],[32,1,32,17],[32,18,32,25],[32,26,32,32],[32,33,32,39],[17,18,17,25],[18,18,18,25],[19,18,19,25],[20,18,20,25],[21,18,21,25],[22,18,22,25],[17,33,17,39],[18,33,18,39],[19,33,19,39],[20,33,20,39],[21,33,21,39],[22,33,22,39],[17,26,17,32],[18,26,18,32],[19,26,19,32],[20,26,20,32],[21,26,21,32],[22,26,22,32],[17,49,17,62],[18,49,18,62],[19,49,19,62],[20,49,20,62],[21,49,21,62],[22,49,22,62],[23,49,23,62],[17,40,17,48],[18,40,18,48],[19,40,19,48],[20,40,20,48],[21,40,21,48],[22,40,22,48],[23,40,23,48],[32,40,32,48],[32,49,32,62],[31,1,31,17],[31,18,31,25],[31,26,31,32],[31,33,31,39],[31,40,31,48],[31,49,31,62],[29,1,29,17],[29,18,29,25],[29,26,29,32],[29,33,29,39],[29,40,29,48],[29,49,29,62],[30,1,30,17],[30,18,30,25],[30,26,30,32],[30,33,30,39],[30,40,30,48],[30,49,30,62]]}
[]
[null,null,"（別紙１－２　イ）"]
[]
[]
[null,null,null,null,null,null,null,null,null,null,null,null,null,null,null,null,null,null,null,null,"事業収支予算書"]
[]
[]
[]
[null,"Ⅰ　支出"]
[]
[null,"経費名称",null,null,null,null,null,null,null,null,null,null,null,null,null,null,null,null,"単価",null,null,null,null,null,null,null,"数量",null,null,null,null,null,null,"単位",null,null,null,null,null,null,"金額",null,null,null,null,null,null,null,null,"備　考\n（事業計画が複数年度に及ぶ場合は各経費の支払予定年度を記載すること）"]
[]
[null,"　交付対象経費"]
[]
[null,null,null,null,null,null,null,null,null,null,null,null,null,null,null,null,null,null,null,null,null,null,null,null,null,null,null,null,null,null,null,null,null,null,null,null,null,null,null,null,{"$f":"S15*AA15","v":0},null,null,null,null,null,null,null,null,null,null,null,null,null,null,null,null,null,null,null,null,null,null,null,"■ 単価・数量・単位を入力すると、金額は自動入力されます。"]
[null,null,null,null,null,null,null,null,null,null,null,null,null,null,null,null,null,null,null,null,null,null,null,null,null,null,null,null,null,null,null,null,null,null,null,null,null,null,null,null,{"$f":"S16*AA16","v":0},null,null,null,null,null,null,null,null,null,null,null,null,null,null,null,null,null,null,null,null,null,null,null," （例：単価「10,000」  数量「１」  単位「台」＝  金額「10,000」）"]
[null,null,null,null,null,null,null,null,null,null,null,null,null,null,null,null,null,null,null,null,null,null,null,null,null,null,null,null,null,null,null,null,null,null,null,null,null,null,null,null,0,null,null,null,null,null,null,null,null,null,null,null,null,null,null,null,null,null,null,null,null,null,null,null,"■ 行が不足する場合は、適宜行を増やしてください。"]
[null,null,null,null,null,null,null,null,null,null,null,null,null,null,null,null,null,null,null,null,null,null,null,null,null,null,null,null,null,null,null,null,null,null,null,null,null,null,null,null,0]
[null,null,null,null,null,null,null,null,null,null,null,null,null,null,null,null,null,null,null,null,null,null,null,null,null,null,null,null,null,null,null,null,null,null,null,null,null,null,null,null,0]
[null,null,null,null,null,null,null,null,null,null,null,null,null,null,null,null,null,null,null,null,null,null,null,null,null,null,null,null,null,null,null,null,null,null,null,null,null,null,null,null,0]
[null,null,null,null,null,null,null,null,null,null,null,null,null,null,null,null,null,null,null,null,null,null,null,null,null,null,null,null,null,null,null,null,null,null,null,null,null,null,null,null,0]
[null,null,null,null,null,null,null,null,null,null,null,null,null,null,null,null,null,null,null,null,null,null,null,null,null,null,null,null,null,null,null,null,null,null,null,null,null,null,null,null,0]
[null,null,null,null,null,null,null,null,null,null,null,null,null,null,null,null,null,null,null,null,null,null,null,null,null,null,null,null,null,null,null,null,null,null,null,null,null,null,null,null,0]
[null,null,null,null,null,null,null,null,null,null,null,null,null,null,null,null,null,null,null,null,null,null,null,null,null,null,null,null,null,null,null,null,null,null,null,null,null,null,null,null,0]
[null,"合計（①）",null,null,null,null,null,null,null,null,null,null,null,null,null,null,null,null,null,null,null,null,null,null,null,null,null,null,null,null,null,null,null,null,null,null,null,null,null,null,{"$f":"SUM(AO15:AW24)","v":0}]
[]
[]
[null,"　交付対象外経費"]
[]
[null,null,null,null,null,null,null,null,null,null,null,null,null,null,null,null,null,null,null,null,null,null,null,null,null,null,null,null,null,null,null,null,null,null,null,null,null,null,null,null,{"$f":"S30*AA30","v":0}]
[null,null,null,null,null,null,null,null,null,null,null,null,null,null,null,null,null,null,null,null,null,null,null,null,null,null,null,null,null,null,null,null,null,null,null,null,null,null,null,null,{"$f":"S31*AA31","v":0}]
[null,null,null,null,null,null,null,null,null,null,null,null,null,null,null,null,null,null,null,null,null,null,null,null,null,null,null,null,null,null,null,null,null,null,null,null,null,null,null,null,0]
[null,null,null,null,null,null,null,null,null,null,null,null,null,null,null,null,null,null,null,null,null,null,null,null,null,null,null,null,null,null,null,null,null,null,null,null,null,null,null,null,0]
[null,"合計（②）",null,null,null,null,null,null,null,null,null,null,null,null,null,null,null,null,null,null,null,null,null,null,null,null,null,null,null,null,null,null,null,null,null,null,null,null,null,null,{"$f":"SUM(AO30:AW33)","v":0}]
[]
[]
[null,"総計／事業費（③＝①+②）",null,null,null,null,null,null,null,null,null,null,null,null,null,null,null,null,null,null,null,null,null,null,null,null,null,null,null,null,null,null,null,null,null,null,null,null,null,null,{"$f":"AO25+AO34","v":0}]
[]
[]
[]
[]
[null,"Ⅱ　収入（本補助金以外に収入がある場合に記載すること）"]
[]
[null,"経費名称",null,null,null,null,null,null,null,null,null,null,null,null,null,null,null,null,"単価",null,null,null,null,null,null,null,"数量",null,null,null,null,null,null,"単位",null,null,null,null,null,null,"金額",null,null,null,null,null,null,null,null,"備　考"]
[]
[null,null,null,null,null,null,null,null,null,null,null,null,null,null,null,null,null,null,null,null,null,null,null,null,null,null,null,null,null,null,null,null,null,null,null,null,null,null,null,null,{"$f":"S46*AA46","v":0}]
[null,null,null,null,null,null,null,null,null,null,null,null,null,null,null,null,null,null,null,null,null,null,null,null,null,null,null,null,null,null,null,null,null,null,null,null,null,null,null,null,{"$f":"S47*AA47","v":0}]
[null,null,null,null,null,null,null,null,null,null,null,null,null,null,null,null,null,null,null,null,null,null,null,null,null,null,null,null,null,null,null,null,null,null,null,null,null,null,null,null,{"$f":"S48*AA48","v":0}]
[null,"合計（④）",null,null,null,null,null,null,null,null,null,null,null,null,null,null,null,null,null,null,null,null,null,null,null,null,null,null,null,null,null,null,null,null,null,null,null,null,null,null,{"$f":"SUM(AO46:AW48)","v":0}]
[]
[]
[]
[]
[null,"Ⅲ　補助金交付申請額の算出"]
[]
[]
[null,"（当該年度分）"]
[]
[null,null,null,null,"①交付対象経費",null,null,null,null,null,null,null,null,null,null,null,"④本補助金以外の収入",null,null,null,null,null,null,null,null,null,null,null,null,null,null,null,"補助割合",null,null,null,null,null,null,null,null,null,null,null,null,"補助金交付申請額（*）"]
[]
[null,null,"（",null,0,null,null,null,null,null,null,null,null,null,"－",null,null,null,null,null,null,null,null,null,null,null,null,"）",null,"×",null,null,null,null,null,null,null,null,null,null,null,"＝",null,null,null,{"$f":"ROUNDDOWN((E61-R61)*AG61, -3)","v":0}]
[]
[null,"（翌年度分）"]
[]
[null,null,null,null,"①交付対象経費",null,null,null,null,null,null,null,null,null,null,null,"④本補助金以外の収入",null,null,null,null,null,null,null,null,null,null,null,null,null,null,null,"補助割合",null,null,null,null,null,null,null,null,null,null,null,null,"補助金交付申請額（*）"]
[]
[null,null,"（",null,null,null,null,null,null,null,null,null,null,null,"－",null,null,null,null,null,null,null,null,null,null,null,null,"）",null,"×",null,null,null,null,null,null,null,null,null,null,null,"＝",null,null,null,{"$f":"ROUNDDOWN((E67-R67)*AG67, -3)","v":0}]
[]
[null,null,null,"＊　補助金交付申請額：千円未満切捨て"]

{"sheet":"Ⅴ","index":2,"n_rows":91,"n_cols":62,"rows_kept":91,"cut":false,"hidden":false,"merged":[[86,20,87,60],[86,61,87,61],[90,1,91,31],[65,15,66,20],[65,21,66,60],[65,61,66,61],[69,1,89,11],[70,13,72,61],[74,15,75,46],[77,15,78,46],[80,15,81,46],[83,15,84,46],[86,15,87,19],[49,15,52,61],[54,1,68,11],[55,13,57,61],[59,15,60,32],[59,33,60,60],[59,61,60,61],[62,15,63,40],[62,41,63,60],[62,61,63,61],[38,61,39,61],[40,15,41,61],[43,15,46,61],[47,15,48,25],[47,26,48,46],[47,47,48,47],[47,48,48,54],[47,55,48,58],[47,59,48,60],[38,15,39,25],[38,26,39,46],[38,47,39,47],[38,48,39,54],[38,55,39,58],[47,61,48,61],[12,1,19,11],[12,13,15,61],[16,13,18,58],[20,1,53,11],[21,13,23,61],[25,15,28,61],[29,15,30,29],[29,30,30,46],[29,47,30,47],[29,48,30,54],[29,55,30,58],[29,59,30,60],[29,61,30,61],[31,15,32,61],[34,15,37,61],[38,59,39,60],[1,2,2,16],[4,10,6,56],[8,1,11,11],[9,16,10,23],[9,28,10,36],[9,40,10,48],[9,52,10,59]]}
[]
[null,null,"（別紙１－１）"]
[]
[]
[null,null,null,null,null,null,null,null,null,null,"事業計画書（Ⅴ　暑さ対策支援枠）"]
[]
[]
[]
[null,"申請者区分"]
[null,null,null,null,null,null,null,null,null,null,null,null,null,null,null,null," 大企業",null,null,null,null,null,null,null,null,null,null,null,"中小企業",null,null,null,null,null,null,null,null,null,null,null,"業界団体",null,null,null,null,null,null,null,null,null,null,null,"グループ"]
[]
[]
[null,"経営計画で\n示す方向性",null,null,null,null,null,null,null,null,null,null,null,"（「東京都中央卸売市場経営計画」を参照し、「Ⅲ　市場の活性化に向けた取組」の「第１　生鮮品等流通の基幹的なインフラとしての機能の強靭化」に規定する「（３）事業継続体制の確保・強化」を記載すること）"]
[]
[]
[]
[null,null,null,null,null,null,null,null,null,null,null,null,null,"第１の１（３）事業継続体制の確保・強化"]
[]
[]
[]
[null,"実施内容"]
[null,null,null,null,null,null,null,null,null,null,null,null,null,"　当該事業により実施する内容にチェックを入れ、チェックボックス下部の（）に必要な記載を行うこと"]
[]
[]
[]
[null,null,null,null,null,null,null,null,null,null,null,null,null,null,null,"従業員等の熱中症対策として体温を下げるための機能を有する作業服等の導入（作業服等の着用部位ごとに従業員等１名あたり１点まで）"]
[]
[]
[]
[null,null,null,null,null,null,null,null,null,null,null,null,null,null,null,"(導入する作業服等の名称：",null,null,null,null,null,null,null,null,null,null,null,null,null,null,null,null,null,null,null,null,null,null,null,null,null,null,null,null,null,null,null,"/","導入点数：",null,null,null,null,null,null,null,null,null,null,"点",null,")"]
[]
[null,null,null,null,null,null,null,null,null,null,null,null,null,null,null,"※対象となる従業員等の人数などがわかる書類を提出すること"]
[]
[]
[null,null,null,null,null,null,null,null,null,null,null,null,null,null,null,"従業員等の熱中症の初期症状等による体調急変を把握できる小型携帯機器（ウェアラブルデバイス）の導入（従業員等１名あたり１点まで）"]
[]
[]
[]
[null,null,null,null,null,null,null,null,null,null,null,null,null,null,null,"(導入機器の名称：",null,null,null,null,null,null,null,null,null,null,null,null,null,null,null,null,null,null,null,null,null,null,null,null,null,null,null,null,null,null,null,"/","導入点数：",null,null,null,null,null,null,null,null,null,null,"点",null,")"]
[]
[null,null,null,null,null,null,null,null,null,null,null,null,null,null,null,"※対象となる従業員等の人数などがわかる書類を提出すること"]
[]
[]
[null,null,null,null,null,null,null,null,null,null,null,null,null,null,null,"従業員等の熱中症リスクの把握に資する暑さ指数（ＷＢＧＴ）計測器の導入"]
[]
[]
[]
[null,null,null,null,null,null,null,null,null,null,null,null,null,null,null,"(導入機器の名称：",null,null,null,null,null,null,null,null,null,null,null,null,null,null,null,null,null,null,null,null,null,null,null,null,null,null,null,null,null,null,null,"/","導入点数：",null,null,null,null,null,null,null,null,null,null,"点",null,")"]
[]
[null,null,null,null,null,null,null,null,null,null,null,null,null,null,null,"※日本産業規格ＪＩＳ Ｚ ８５０４又はＢ ７９２２ に適合していることがわかるものを提出すること"]
[]
[]
[]
[]
[null,"主たる\n使用場所"]
[null,null,null,null,null,null,null,null,null,null,null,null,null,"　当該事業により導入する機器等について、主たる使用場所にチェックを入れ、（）に具体的な使用場所を記載すること"]
[]
[]
[]
[null,null,null,null,null,null,null,null,null,null,null,null,null,null,null,"外気に直接触れる屋外環境(",null,null,null,null,null,null,null,null,null,null,null,null,null,null,null,null,null,null,null,null,null,null,null,null,null,null,null,null,null,null,null,null,null,null,null,null,null,null,null,null,null,null,null,null,null,")"]
[]
[]
[null,null,null,null,null,null,null,null,null,null,null,null,null,null,null,"熱中症対策が必要となる暑熱な屋内環境(",null,null,null,null,null,null,null,null,null,null,null,null,null,null,null,null,null,null,null,null,null,null,null,null,null,null,null,null,null,null,null,null,null,null,null,null,null,null,null,null,null,null,null,null,null,")"]
[]
[]
[null,null,null,null,null,null,null,null,null,null,null,null,null,null,null,"その他(",null,null,null,null,null,null,null,null,null,null,null,null,null,null,null,null,null,null,null,null,null,null,null,null,null,null,null,null,null,null,null,null,null,null,null,null,null,null,null,null,null,null,null,null,null,")"]
[]
[]
[]
[null,"期待する効果\n（複数選択可）"]
[null,null,null,null,null,null,null,null,null,null,null,null,null,"　当該事業により期待する効果について、チェックを入れ、（）内に必要な記載を行うこと　"]
[]
[]
[]
[null,null,null,null,null,null,null,null,null,null,null,null,null,null,null,"従業員等の熱中症の未然防止"]
[]
[]
[null,null,null,null,null,null,null,null,null,null,null,null,null,null,null,"熱中症のおそれのある従業員等の早期発見"]
[]
[]
[null,null,null,null,null,null,null,null,null,null,null,null,null,null,null,"暑熱な環境下での事業継続体制の確保・強化"]
[]
[]
[null,null,null,null,null,null,null,null,null,null,null,null,null,null,null,"人材定着等に向けた作業環境の改善"]
[]
[]
[null,null,null,null,null,null,null,null,null,null,null,null,null,null,null,"その他(",null,null,null,null,null,null,null,null,null,null,null,null,null,null,null,null,null,null,null,null,null,null,null,null,null,null,null,null,null,null,null,null,null,null,null,null,null,null,null,null,null,null,null,null,null,")"]
[]
[]
[]
[null,"※　別紙１－１は、１ページを目安とする"]

{"sheet":"リスト","index":3,"n_rows":32,"n_cols":8,"rows_kept":32,"cut":false,"hidden":true,"merged":[]}
[]
["令和8",8,1,1,8,0.5,"第１の１（１）公平かつ公正な取引環境の確保","／日"]
["令和9",9,2,2,9,0.66666666666666663,"第１の１（２）品質・衛生管理の徹底・強化","／週"]
["令和10",null,3,3,10,0.8,"第１の１（３）事業継続体制の確保・強化","／月"]
[null,null,4,4,null,null,"第１の１（４）ＤＸの推進等による市場業務の効率化"]
[null,null,5,5,null,null,"第１の２　サプライチェーンにおける結びつきの強化"]
[null,null,6,6,null,null,"第１の３　市場業者の経営基盤の強化"]
[null,null,7,7,null,null,"第２の１　物流の高度化・効率化"]
[null,null,8,8,null,null,"第２の２　商流の高度化・効率化"]
[null,null,9,9,null,null,"第２の３　多様な消費者ニーズへの対応"]
[null,null,10,10,null,null,"第３の１（１）環境問題への取組（市場のゼロエミッション化）"]
[null,null,11,11,null,null,"第３の１（２）環境問題への取組（持続可能な調達等の取組）"]
[null,null,12,12,null,null,"第３の２　地域社会との共生"]
[null,null,null,13,null,null,"第３の３　働き方改革・ダイバーシティの推進"]
[null,null,null,14]
[null,null,null,15]
[null,null,null,16]
[null,null,null,17]
[null,null,null,18]
[null,null,null,19]
[null,null,null,20]
[null,null,null,21]
[null,null,null,22]
[null,null,null,23]
[null,null,null,24]
[null,null,null,25]
[null,null,null,26]
[null,null,null,27]
[null,null,null,28]
[null,null,null,29]
[null,null,null,30]
[null,null,null,31]